Cogmind - Beta 17.1 @@@ ROGUE MODE // 2026.09.02 @ 15:09:24 Player: Scuttle Result: Self-destructed Performance ------------- Evolutions (4) 2000 Regions Visited (8) 1600 Robots Destroyed (0) 0 Value Destroyed (0) 0 Prototype IDs (0) 0 Alien Tech Used (0) 0 Bonus (2025) 2025 TOTAL SCORE: 5625 Bonus ------- Pacifist 1325 Entered Garrisons 200 Entered DSFs 500 Cogmind --------- Core Integrity 75/850 Matter 300/300 Energy 100/100 System Corruption 3% Temperature Cool (0) Movement Core (50) Location -6/Factory Parts ------- > --- POWER (1) -------- (None) > --- PROPULSION (2) --- (None) > --- UTILITY (10) ----- Advanced Terrain Scan Processor > --- WEAPON (2) ------- (None) > --- INVENTORY (5) ---- Experimental Sensor Array Peak State ------------ > --- POWER ------------ (None) > --- PROPULSION ------- (None) > --- UTILITY ---------- Advanced Terrain Scan Processor Corruption Screen > --- WEAPON ----------- Assault Rifle Light Assault Rifle > --- INVENTORY -------- Experimental Sensor Array [Rating: 10] Favorites ----------- Power None Propulsion None Utility Advanced Terrain Scan Processor Processor Advanced Terrain Scan Processor Weapon Light Assault Rifle Ballistic Gun Light Assault Rifle Build | -11 -10 -9 -9 -8 -7 -7 -7 -6 ------- Run | Yrd Mat Mat Min Mat Fac DSF Gar Fac Slots Evolved 8 | . . 2 . 2 2 . . 2 Power . | . . . . . . . . . Propulsion . | . . . . . . . . . Utility 8 | . . 2 . 2 2 . . 2 Weapon . | . . . . . . . . . Parts Attached 4 | 2 . . . 2 . . . . Power . | . . . . . . . . . Engine . | . . . . . . . . . Core . | . . . . . . . . . Reactor . | . . . . . . . . . Propulsion . | . . . . . . . . . Treads . | . . . . . . . . . Leg . | . . . . . . . . . Wheel . | . . . . . . . . . Hover . | . . . . . . . . . Flight . | . . . . . . . . . Utility 2 | . . . . 2 . . . . Device . | . . . . . . . . . Storage . | . . . . . . . . . Processor 2 | . . . . 2 . . . . Hackware . | . . . . . . . . . Protection . | . . . . . . . . . Artifact . | . . . . . . . . . Weapon 2 | 2 . . . . . . . . Energy Gun . | . . . . . . . . . Energy Cannon . | . . . . . . . . . Ballistic Gun 2 | 2 . . . . . . . . Ballistic Cannon . | . . . . . . . . . Launcher . | . . . . . . . . . Special Weapon . | . . . . . . . . . Impact Weapon . | . . . . . . . . . Slashing Weapon . | . . . . . . . . . Piercing Weapon . | . . . . . . . . . Special Melee Weapon . | . . . . . . . . . Unidentified Prototypes . | . . . . . . . . . Parts Lost 3 | . . . . . . 2 . 1 Power . | . . . . . . . . . Propulsion . | . . . . . . . . . Utility 1 | . . . . . . . . 1 Weapon 2 | . . . . . . 2 . . Highest Loss Streak 2 | . . . . . . 2 . 1 To Critical Strikes . | . . . . . . . . . Average Backups . | . . . . 1 1 1 1 1 Power . | . . . . . . . . . Propulsion . | . . . . . . . . . Utility . | . . . . 1 1 1 1 1 Weapon . | . . . . . . . . . Tool/Special . | . . . . . . . . . Unused Backups 1 | . . . . . . . . 1 Power . | . . . . . . . . . Propulsion . | . . . . . . . . . Utility 1 | . . . . . . . . 1 Weapon . | . . . . . . . . . Tool/Special . | . . . . . . . . . Average Slot Usage (%) 16 | . 28 22 22 19 30 22 15 9 Processor 9 | . . . . 1 15 15 15 9 Ballistic Gun 7 | . 28 22 22 18 15 7 . . Peak Build Rating 10 | 2 2 2 2 10 10 10 8 8 Average Rating 5 | 1 2 2 2 2 10 8 8 5 On Entrance 4 | . 2 2 2 2 10 10 8 8 Avg Prop Armor Cover (%) . | . . . . . . . . . Naked Turns . | . . . . . . . . . Heaviest Build 3 | 3 3 3 3 3 3 3 . . Greatest Support 3 | 3 3 3 3 3 3 3 3 3 Greatest Overweight (x) . | . . . . . . . . . Average Overweight (x) . | . . . . . . . . . Largest Inventory Capacity 5 | 5 5 5 5 5 5 5 5 5 Average Capacity 5 | 5 5 5 5 5 5 5 5 5 Most Carried 1 | . . . 1 1 1 1 1 1 Average Carried . | . . . . 1 1 1 1 1 Final Capacity 5 | 5 5 5 5 5 5 5 5 5 Final Carried 1 | . . . 1 1 1 1 1 1 Class Distribution -------------------- 100% | Mutant Dominant Class ---------------- Mutant | -10/Materials Mutant | -9/Materials Mutant | -9/Mines Mutant | -8/Materials Mutant | -7/Factory Mutant | -7/DSF Mutant | -7/Garrison Mutant | -6/Factory Resources | -11 -10 -9 -9 -8 -7 -7 -7 -6 ----------- Run | Yrd Mat Mat Min Mat Fac DSF Gar Fac Matter Collected 203 | . . . 35 . . 4 . 164 Remotely . | . . . . . . . . . Salvage Created . | . . . . . . . . . Parts . | . . . . . . . . . Haulers Intercepted . | . . . . . . . . . Recyclers Shooed . | . . . . . . . . . Parts Field Recycled . | . . . . . . . . . Retrieved Matter . | . . . . . . . . . Parts Self-Destructed . | . . . . . . . . . Prevented . | . . . . . . . . . Parts Restored . | . . . . . . . . . Kills | -11 -10 -9 -9 -8 -7 -7 -7 -6 ------- Run | Yrd Mat Mat Min Mat Fac DSF Gar Fac Combat Hostiles Destroyed . | . . . . . . . . . Classes Destroyed . | . . . . . . . . . Best Kill Streak . | . . . . . . . . . Combat Bots Only . | . . . . . . . . . Max Kills in Single Turn . | . . . . . . . . . Gunslinging . | . . . . . . . . . Exploded . | . . . . . . . . . Melee . | . . . . . . . . . Uniques/NPCs Destroyed . | . . . . . . . . . Combat | -11 -10 -9 -9 -8 -7 -7 -7 -6 -------- Run | Yrd Mat Mat Min Mat Fac DSF Gar Fac Hostile Shots Fired 176 | . . . 14 2 . 37 39 84 Missed 74 | . . . 5 . . 14 18 37 Hits 102 | . . . 9 2 . 23 21 47 Projectile 102 | . . . 9 2 . 23 21 47 AOE 1 | . . . . . . . . 1 Critical Strikes 3 | . . . . . . . 1 2 Damage Taken 1572 | . . . 76 29 . 363 303 801 Core 1362 | . . . 18 15 . 251 303 775 Absorbed by Shields 90 | . . . . . . 57 33 . Core Remaining (%) 82 | 100 100 . 95 97 . . 20 . Volleys Fired . | . . . . . . . . . Largest . | . . . . . . . . . Hottest . | . . . . . . . . . Shots Fired . | . . . . . . . . . Gun . | . . . . . . . . . Cannon . | . . . . . . . . . Launcher . | . . . . . . . . . Special . | . . . . . . . . . Kinetic . | . . . . . . . . . Thermal . | . . . . . . . . . Explosive . | . . . . . . . . . Electromagnetic . | . . . . . . . . . Robot Hit Streak . | . . . . . . . . . Robot Miss Streak . | . . . . . . . . . Penetration Max . | . . . . . . . . . Secondary Targets . | . . . . . . . . . Shots Hit Robots . | . . . . . . . . . Core Hits . | . . . . . . . . . Critical Kills . | . . . . . . . . . Critical Parts Destroyed . | . . . . . . . . . Critical Strikes . | . . . . . . . . . Melee Attacks . | . . . . . . . . . Impact . | . . . . . . . . . Slashing . | . . . . . . . . . Piercing . | . . . . . . . . . Sneak Attacks . | . . . . . . . . . Combat Hostiles . | . . . . . . . . . Follow-up Attacks . | . . . . . . . . . Damage Inflicted 41 | . . . . . . . . 41 Guns . | . . . . . . . . . Cannons . | . . . . . . . . . Explosions . | . . . . . . . . . Melee . | . . . . . . . . . Ramming 41 | . . . . . . . . 41 Kinetic . | . . . . . . . . . Thermal . | . . . . . . . . . Explosive . | . . . . . . . . . Electromagnetic . | . . . . . . . . . Impact . | . . . . . . . . . Slashing . | . . . . . . . . . Piercing . | . . . . . . . . . Highest Corruption 3 | . . . . . . . . 3 Average Corruption 1 | . . . . . . . . 1 Corruption Purged . | . . . . . . . . . Corruption Blocked . | . . . . . . . . . Effects 1 | . . . . . . . . 1 Message Errors 1 | . . . . . . . . 1 Overload Shots . | . . . . . . . . . Overflow Damage . | . . . . . . . . . Projectiles . | . . . . . . . . . Explosions . | . . . . . . . . . Melee . | . . . . . . . . . Knockbacks . | . . . . . . . . . Impact . | . . . . . . . . . Kinetic . | . . . . . . . . . Secondary . | . . . . . . . . . Self-Inflicted Damage 19 | . . . . . . . . 19 Shots . | . . . . . . . . . Rammed 7 | . . . . . . . . 7 Targets Rammed 7 | . . . . . . . . 7 Kicked . | . . . . . . . . . Crushed . | . . . . . . . . . Highest Temperature 9 | . . . . . . . . 9 Average Temperature 9 | . . . . . . . . 9 Received Heat Transfer 326 | . . . . 9 . . 159 158 Siege Activations . | . . . . . . . . . Martial Activations . | . . . . . . . . . Shielding Activations . | . . . . . . . . . Robots Disrupted . | . . . . . . . . . Combat Hostiles . | . . . . . . . . . Robots Corrupted . | . . . . . . . . . Combat Hostiles . | . . . . . . . . . Parts Fried . | . . . . . . . . . Impact Corruptions . | . . . . . . . . . Robots Melted . | . . . . . . . . . Combat Hostiles . | . . . . . . . . . Parts Melted . | . . . . . . . . . Heat Transferred . | . . . . . . . . . Parts Sabotaged . | . . . . . . . . . Parts Stolen . | . . . . . . . . . Parts Stripped . | . . . . . . . . . Power Chain Reactions . | . . . . . . . . . Alert | -11 -10 -9 -9 -8 -7 -7 -7 -6 ------- Run | Yrd Mat Mat Min Mat Fac DSF Gar Fac Maximum Alert Level . | . . . . . . . . . Low Security (%) 100 | 100 100 100 100 100 100 100 100 100 Level 1 . | . . . . . . . . . Level 2 . | . . . . . . . . . Level 3 . | . . . . . . . . . Level 4 . | . . . . . . . . . Level 5 . | . . . . . . . . . High Security . | . . . . . . . . . Max Security . | . . . . . . . . . Peak Influence 100 | . . 15 50 19 5 3 75 100 Initial 39 | . . . . 19 . 3 . 39 Average 23 | . . 5 12 12 . 1 29 40 Influence Increases 335 | . . 15 60 . 5 . 75 180 Successful Hack 5 | . . . . . 5 . . . Partial Spotted 30 | . . 15 . . . . . 15 Lose Combat Pursuer 300 | . . . 60 . . . 75 165 Influence Decreases 245 | . . 15 10 50 . 5 . 165 Entered New Map 69 | . . . . 31 . 2 . 36 Time Decay 163 | . . 15 10 19 . . . 119 Lost Part 13 | . . . . . . 3 . 10 Squads Dispatched 6 | . . . . . . . . 6 Investigation . | . . . . . . . . . Extermination . | . . . . . . . . . Reinforcement 5 | . . . . . . . . 5 Assault . | . . . . . . . . . Garrison 1 | . . . . . . . . 1 Intercept . | . . . . . . . . . Searches Triggered . | . . . . . . . . . Construction Impeded . | . . . . . . . . . Haulers Reinforced . | . . . . . . . . . Active Scanning Responses . | . . . . . . . . . Cargo Convoy Interrupts . | . . . . . . . . . Stealth | -11 -10 -9 -9 -8 -7 -7 -7 -6 --------- Run | Yrd Mat Mat Min Mat Fac DSF Gar Fac Distress Signals 1 | . . . . . . . . 1 Communications Jammed . | . . . . . . . . . Distress Signals . | . . . . . . . . . Times Spotted 52 | . 1 . 5 1 . 2 8 35 Peak Tracking Total 13 | . 1 . 3 1 . 2 7 13 Tactical Retreats 9 | . . . 2 . . . 2 5 Traps | -11 -10 -9 -9 -8 -7 -7 -7 -6 ------- Run | Yrd Mat Mat Min Mat Fac DSF Gar Fac Traps Triggered 8 | . . . . . . 3 3 2 Indirectly . | . . . . . . . . . Trap Hack Attempts . | . . . . . . . . . Triggered . | . . . . . . . . . Disarmed . | . . . . . . . . . Reprogrammed . | . . . . . . . . . Reused . | . . . . . . . . . Traps Extracted . | . . . . . . . . . Installed . | . . . . . . . . . Triggered . | . . . . . . . . . Machines | -11 -10 -9 -9 -8 -7 -7 -7 -6 ---------- Run | Yrd Mat Mat Min Mat Fac DSF Gar Fac Machines Disabled . | . . . . . . . . . Max in Single Turn . | . . . . . . . . . Machines Repaired . | . . . . . . . . . Machines Dismantled . | . . . . . . . . . Machines Sabotaged . | . . . . . . . . . Overloaded Fab Kills . | . . . . . . . . . Hacking | -11 -10 -9 -9 -8 -7 -7 -7 -6 --------- Run | Yrd Mat Mat Min Mat Fac DSF Gar Fac Machines Accessed 1 | . . . . . 1 . . . Terminals 1 | . . . . . 1 . . . Fabricators . | . . . . . . . . . Repair Stations . | . . . . . . . . . Recycling Units . | . . . . . . . . . Scanalyzers . | . . . . . . . . . Garrison Access . | . . . . . . . . . Total Hacks 1 | . . . . . 1 . . . Successful 1 | . . . . . 1 . . . Failed . | . . . . . . . . . Catastrophic . | . . . . . . . . . Database Lockouts . | . . . . . . . . . Manual . | . . . . . . . . . Terminals 1 | . . . . . 1 . . . Fabricators . | . . . . . . . . . Repair Stations . | . . . . . . . . . Recycling Units . | . . . . . . . . . Scanalyzers . | . . . . . . . . . Garrison Access . | . . . . . . . . . Terminal Hacks 1 | . . . . . 1 . . . Open DSF 1 | . . . . . 1 . . . Fabricator Hacks . | . . . . . . . . . Repair Station Hacks . | . . . . . . . . . Recycling Unit Hacks . | . . . . . . . . . Scanalyzer . | . . . . . . . . . Garrison Access Hacks . | . . . . . . . . . Unauthorized Hacks . | . . . . . . . . . Terminals . | . . . . . . . . . Fabricators . | . . . . . . . . . Repair Stations . | . . . . . . . . . Recycling Units . | . . . . . . . . . Scanalyzers . | . . . . . . . . . Garrison Access . | . . . . . . . . . Data Cores Recovered . | . . . . . . . . . Used . | . . . . . . . . . Hacking Detections . | . . . . . . . . . Full Trace Events . | . . . . . . . . . Feedback Events . | . . . . . . . . . Feedback Blocked . | . . . . . . . . . Robot Schematics Acquired . | . . . . . . . . . Robots Built . | . . . . . . . . . Authchips . | . . . . . . . . . Time . | . . . . . . . . . Total Robot Build Rating . | . . . . . . . . . Part Schematics Acquired . | . . . . . . . . . Parts Built . | . . . . . . . . . Authchips . | . . . . . . . . . Time . | . . . . . . . . . Total Part Build Rating . | . . . . . . . . . Part Studies Acquired . | . . . . . . . . . Parts Repaired . | . . . . . . . . . Time . | . . . . . . . . . Parts Recycled . | . . . . . . . . . Recycled Matter . | . . . . . . . . . Retrieved Matter . | . . . . . . . . . Retrieved Components . | . . . . . . . . . Parts Scanalyzed . | . . . . . . . . . Part Schematics Acquired . | . . . . . . . . . Parts Damaged . | . . . . . . . . . Bothacking | -11 -10 -9 -9 -8 -7 -7 -7 -6 ------------ Run | Yrd Mat Mat Min Mat Fac DSF Gar Fac Used RIF Installer . | . . . . . . . . . Robots Hacked . | . . . . . . . . . Non-combat . | . . . . . . . . . Combat . | . . . . . . . . . Robot Hacks Applied . | . . . . . . . . . Relay Couplers Released . | . . . . . . . . . Fabnet Peak Effective % . | . . . . . . . . . Robots Rewired . | . . . . . . . . . Allies Hacked . | . . . . . . . . . Hacks Repelled . | . . . . . . . . . Allies | -11 -10 -9 -9 -8 -7 -7 -7 -6 -------- Run | Yrd Mat Mat Min Mat Fac DSF Gar Fac Total Allies . | . . . . . . . . . Largest Group . | . . . . . . . . . Highest-Rated Group . | . . . . . . . . . Highest-Rated Ally . | . . . . . . . . . Total Orders . | . . . . . . . . . Ally Attacks . | . . . . . . . . . Total Damage . | . . . . . . . . . Kills . | . . . . . . . . . Allies Corrupted . | . . . . . . . . . Allies Melted . | . . . . . . . . . Intel | -11 -10 -9 -9 -8 -7 -7 -7 -6 ------- Run | Yrd Mat Mat Min Mat Fac DSF Gar Fac Active Infowar (turns) . | . . . . . . . . . Robot Analysis Total . | . . . . . . . . . Derelict Logs Recovered . | . . . . . . . . . Drone Launches . | . . . . . . . . . Drone Recoveries . | . . . . . . . . . Exploration | -11 -10 -9 -9 -8 -7 -7 -7 -6 ------------- Run | Yrd Mat Mat Min Mat Fac DSF Gar Fac Turns Passed 656 | 14 34 45 35 44 28 58 153 245 Spaces Moved 1129 | 22 68 89 67 82 55 59 229 458 Core 1129 | 22 68 89 67 82 55 59 229 458 Treads . | . . . . . . . . . Legs . | . . . . . . . . . Wheels . | . . . . . . . . . Hover . | . . . . . . . . . Flight . | . . . . . . . . . Fastest Speed 50 | 50 50 50 50 50 50 50 50 50 Average Speed 50 | 50 50 50 50 50 50 50 50 50 Slowest Speed 50 | 50 50 50 50 50 50 50 50 50 Overloaded Moves . | . . . . . . . . . Propulsion Burnouts . | . . . . . . . . . Robots Hopped . | . . . . . . . . . Potential Cave-ins . | . . . . . . . . . Cave-ins Triggered . | . . . . . . . . . Exploration Rate (%) 24 | 3 23 10 30 8 1 84 46 15 Regions Visited 8 Branch Regions 1 Pre-discovered Areas . | . . . . . . . . . Known Exits Taken 1 | . . . . . 1 . . . Unknown Exits Taken 5 | 1 1 1 1 1 . . . . Scrap Searched 1 | . . . 1 . . . . . Spaces Dug . | . . . . . . . . . Terrain Destroyed . | . . . . . . . . . Melee . | . . . . . . . . . Projectile . | . . . . . . . . . AOE . | . . . . . . . . . Terrain Rammed . | . . . . . . . . . Walls Destroyed . | . . . . . . . . . Machines Disabled . | . . . . . . . . . Actions | -11 -10 -9 -9 -8 -7 -7 -7 -6 --------- Run | Yrd Mat Mat Min Mat Fac DSF Gar Fac Total 1207 | 23 67 88 67 83 54 86 266 473 Wait 14 | . . . . . . 6 . 8 Move 1120 | 21 67 88 66 81 54 58 227 458 Hop . | . . . . . . . . . Pick Up 1 | . . . 1 . . . . . Fast Attach 4 | 2 . . . 2 . . . . Attach . | . . . . . . . . . Detach . | . . . . . . . . . Swap . | . . . . . . . . . Drop . | . . . . . . . . . Fire . | . . . . . . . . . Melee . | . . . . . . . . . Ram 7 | . . . . . . . . 7 Kick . | . . . . . . . . . Crush . | . . . . . . . . . Escape Stasis 61 | . . . . . . 22 39 . Rewire . | . . . . . . . . . Trap . | . . . . . . . . . Miscellaneous . | . . . . . . . . . Route ------- -11/Scrapyard -10/Materials -9/Materials -9/Mines -8/Materials -7/Factory -7/DSF -7/Garrison (discovered 2 exits: [*Fac x2]) -6/Factory History --------- Turn | Location | Event 10 | -11/Scrapyard | Discovered new exit (range 12) 15 | -11/Scrapyard | Entered Materials 42 | -10/Materials | Discovered new exit (range 16) 49 | -10/Materials | Entered another Materials area 49 | -9/Materials | Evolved 2 slots: Utility x2 91 | -9/Materials | Discovered new exit (range 6) 94 | -9/Materials | Entered Mines 102 | -9/Mines | Found a damaged Exp. Sensor Array with a note attached 103 | -9/Mines | Found Prototype Device 110 | -9/Mines | A Derelict revealed a hidden shortcut to a safe place 125 | -9/Mines | Discovered new exit (range 8) 129 | -9/Mines | Entered Materials 129 | -8/Materials | Evolved 2 slots: Utility x2 157 | -8/Materials | Discovered new exit (range 16) 173 | -8/Materials | Entered Factory 173 | -7/Factory | Evolved 2 slots: Utility x2 200 | -7/Factory | Identified exit to DSF 201 | -7/Factory | Entered DSF 219 | -7/DSF | Additional patrols routed to DSF 240 | -7/DSF | Discovered new exit (range 15) 259 | -7/DSF | Entered Garrison 273 | -7/Garrison | Triggered checkpoint 301 | -7/Garrison | Triggered checkpoint 305 | -7/Garrison | Build established: Mutant 326 | -7/Garrison | Core integrity fell below 50% 329 | -7/Garrison | Discovered new exit (range 14) 337 | -7/Garrison | Attempted to access garrison exit controls, blocked by remote lockdown 408 | -7/Garrison | Discovered new exit (range 10) 412 | -7/Garrison | Entered Factory 412 | -6/Factory | Evolved 2 slots: Utility x2 436 | -6/Factory | Spotted B-75 Beast 541 | -6/Factory | Assembled infested ambush trap array 543 | -6/Factory | Core integrity fell below 50% 554 | -6/Factory | Assembled infested ambush trap array 561 | -6/Factory | Garrison activated, responded to threat 648 | -6/Factory | Core integrity fell below 20% 657 | -6/Factory | Self-destructed Last Messages --------------- 00554_ as-89615 emerges from a hatch in the floor. 00554_ ALERT: Infestation has breached Complex 0b10, dispatching Demolisher response squad. 00558_ ALERT: Hostile activity reported, dispatching reinforcements to area. 00561_ ALERT: Activating Garrison Access F002. 00569_ as-51062 destroyed. 00569_ as-12855 destroyed. 00569_ as-89615 destroyed. 00570_ S-27 Virus destroyed. 00614_ The unstable cave ceiling collapses. 00617_ Acquired 6 matter. 00618_ XBGBE6GN|PPJG>:J/UZ>/%NGPW<5=U 00622_ Acquired 81 matter. 00638_ Terminal disabled. 00638_ K-01 Serf pushes S-27 Virus. 00646_ ALERT: Suspicious intruders detected, dispatching Cutter reinforcements to area. 00648_ Critical hit (Burn: +50). 00649_ Critical hit (Burn: +37). Map ----- +----------------------------------------------------+ | ?????????????????????????????????????????????? | | ?????????????????????????????????????????????? | | ?????????????????????????????????????????????? | | ?????????????????????????????????????????????? | | ?????????????????????????????????????????????? | | ?????????????????????????????????????????????? | | ?????????????????????????????????????????????? | | ?????????????????????????????????????????????? | | ?????????????????????H???????????????????????? | | ?????????????????????????????????????????????? | | ?????????????????????????????????????????????? | | ????????????????########?????????????????????? | | ????????????????# #?????????????????????? | | ????????????????#"" !#?????????????????????? | | ??????????#######"T ! #?????????????????????? | | ??????????# #"" #?????????????????????? | | ??????????# # #?????????????????????? | | ??????????+ " / #?????????????????????? | | ??????????# # """ #?????????????????????? | | ??????????# # """ #?????????????????????? | | ??????????## ## """ #?????????????????????? | | ???????????# ## #?????????????????????? | | ???????????# ##k""" #?????????????????????? | | ???????????# ## """ #?????????????????????? | | ??????????## ## """ #?????????????????????? | | ??????????# # @!#?????????????????????? | | ?????###### "" ########?????????????????????? | | ????# "T #????????????????????????????? | | ????# ##### ]#????????????????????????????? | | ??????????# ! #????????????????????????????? | | ??????????### ###????????????????????????????? | | ????????????# #??????????????????????????????? | | ????????????# #??????????????????????????????? | | ????????????# #??????????????????????????????? | | ????????????# #??????????????????????????????? | | ????????????# ####T ##???????????????????????? | | ????????????# +???????????????????? | | ????????????# ########???????????????????????? | | ??????????### #??????????????????????????? | | ??????????# ################+## ?????? | | ??????????# ?????? | | ??????????+ ] ?????? | | ??????????# ?????? | | ??????????# # ################## ?????? | | ??????????## ####??????????????????????????? | | ???????????# #?????????????????????????????? | | ???????????# #??????????????????????? ????? | | ???????????# #??????#??????????????# ????? | | ???????????# #???? #??????????????# ????? | | ???????????# #?? #????????????### ###?? | +----------------------------------------------------+ Best States ------------- Heat Dissipation 37 Energy Generation 5 Energy Capacity 100 Matter Stores 300 Matter Capacity 300 Sight Range 16 Terrain Scan Density 210 Corruption Block 8 Evasion (%) 50 Item Schematics ----------------- None Robot Schematics ------------------ None Fabricated ------------ Nothing Repaired ---------- Nothing Studied --------- None Alien Tech Used ----------------- None Achievements -------------- None Challenges ------------ None Game ------ Seed WardroneStasisPit Manual? 0 Play Time 00:11:38 Cumulative 632.9 hours Start 2026.09.02 @ 15:01:37 End 2026.09.02 @ 15:09:24 Sessions 1 Manual Loads 0 Difficulty Rogue Special Mode None Game No. 273 Rogue 273 Adventurer 0 Explorer 0 Win Type - Total 38 Types 17/4/6/2/1/2/2/2/1/1 Lore% 91 Gallery% 83 Achievement% 78 Wizard Run 0 Options --------- Layout 0 ASCII 0 Keyboard 1 Movement Arrows Keybinds 0 Fullscreen 2 Font 18/Terminus Map View 76x50 Zoom Use 0% Tactical HUD 1 Map Filters BRIGHTNESS(90)|SATURATION(90) Filters NONE Steam 1 RUN: 7ce75ede-2dde-4bb1-a27a-402aa9545285